bitfinex/quotes_SOLUSD_20250929
["timestamp","ask_amount","ask_price","bid_price","bid_amount"]
[1759166446279,62.01148608,209.02,209.01,0.2]
[1759166447384,26.67148608,209.02,209.01,0.2]
[1759166447587,61.39148608,209.02,209.01,0.2]
[1759166448595,61.37148608,209.02,209.01,0.2]
[1759166449691,61.95148608,209.02,209.01,0.2]
[1759166449989,61.37148608,209.02,209.01,0.2]
[1759166450190,61.35148608,209.02,209.01,0.2]
[1759166450689,21.88725491,209.02,209.01,0.2]
[1759166450898,56.56725491,209.02,209.01,0.9]
[1759166452203,13.59559401,209.02,209.01,0.9]
[1759166452385,48.25559401,209.02,209.01,0.9]
[1759166452598,8.2916609,209.05,209.01,0.9]
[1759166452788,48.25559401,209.04,209.02,0.66]
[1759166452987,48.25559401,209.04,209.03,0.66]
[1759166453509,48.25559401,209.04,209.01,0.2]
[1759166453709,8.2916609,209.02,209.01,0.2]
[1759166454004,42.9316609,209.02,209.01,0.2]
[1759166455306,47.71589207,209.02,209.01,0.2]
[1759166455911,61.31148608,209.02,209.01,0.2]
[1759166459501,13.59559401,209.01,208.91,0.86]
[1759166459706,13.59559401,208.94,208.91,0.2]
[1759166459895,48.19559401,208.93,208.92,0.66]
[1759166460095,48.19559401,208.93,208.91,0.2]
[1759166460599,48.19559401,208.93,208.92,0.66]
[1759166460995,13.59559401,208.92,208.91,0.2]
[1759166461201,21.88725491,208.92,208.91,0.2]
[1759166461400,26.67377606,208.92,208.91,0.2]
[1759166462400,27.25377606,208.92,208.91,0.2]
[1759166462924,39.22007895,208.92,208.86,0.2]
[1759166463226,21.88725491,208.87,208.86,0.2]
[1759166463519,61.27492187,208.87,208.86,0.2]
[1759166464131,61.85492187,208.87,208.86,0.2]
[1759166464512,61.85492187,208.87,208.86,1e-08]
[1759166464840,13.59559401,208.86,208.8,0.2]
[1759166465136,21.88725491,208.81,208.8,0.86]
[1759166465334,13.59559401,208.81,208.8,0.86]
[1759166465634,48.19559401,208.81,208.8,0.86]
[1759166467827,52.98463668,208.81,208.8,0.2]
[1759166468031,61.27629758,208.81,208.8,0.2]
[1759166468928,26.67629758,208.81,208.8,0.2]
[1759166469244,61.87629758,208.81,208.8,0.2]
[1759166469411,61.29629758,208.81,208.8,0.2]
[1759166473746,58.56388036,208.81,208.8,0.2]
[1759166474419,13.59559401,208.81,208.8,0.91]
[1759166474820,48.17559401,208.81,208.8,0.91]
[1759166475637,34.58,208.81,208.8,0.91]
[1759166476011,48.17559401,208.81,208.8,0.91]
[1759166476846,13.59559401,208.81,208.8,0.91]
[1759166477038,48.17559401,208.81,208.8,0.91]
[1759166477240,13.59559401,208.84,208.8,0.91]
[1759166477448,34.58,208.83,208.81,0.71]
[1759166478243,39.36880678,208.83,208.81,0.71]
[1759166478453,13.59559401,208.82,208.81,0.71]
[1759166478625,13.59559401,208.82,208.8,0.2]
[1759166478827,34.56,208.81,208.8,0.2]
[1759166479244,48.15559401,208.81,208.8,0.2]
[1759166479436,48.15559401,208.81,208.8,0.91]
[1759166481054,52.94463668,208.81,208.8,0.91]
[1759166481232,53.52463668,208.81,208.8,0.2]
[1759166481434,53.52463668,208.81,208.64,23.96434377]
[1759166481435,13.59559401,208.8,208.65,4.79271507]
[1759166481751,13.59559401,208.73,208.69,0.66]
[1759166481941,13.59559401,208.71,208.69,0.66]
[1759166482248,13.59559401,208.73,208.65,4.79271507]
[1759166482249,34.58,208.7,208.65,4.79271507]
[1759166482655,34.58,208.7,208.66,0.66]
[1759166482857,34.58,208.7,208.67,0.66]
[1759166483160,39.37167768,208.7,208.67,0.66]
[1759166483741,13.59559401,208.69,208.67,0.66]
[1759166483944,34.58,208.68,208.64,4.79289543]
[1759166484543,34.58,208.68,208.65,0.66]
[1759166484739,34.58,208.68,208.66,0.66]
[1759166485067,34.58,208.68,208.67,0.66]
[1759166485242,34.58,208.68,208.67,5.45225571]
[1759166485959,13.59559401,208.76,208.67,17.43289499]
[1759166486144,13.59559401,208.74,208.68,0.66]
[1759166486465,34.58,208.73,208.68,0.66]
[1759166486762,34.58,208.72,208.68,0.66]
[1759166487844,34.58,208.72,208.69,4.79179644]
[1759166488143,34.58,208.72,208.7,0.66]
[1759166488459,34.58,208.72,208.71,0.66]
[1759166489354,34.58,208.72,208.68,0.66]
[1759166489555,34.58,208.72,208.69,0.66]
[1759166489743,34.58,208.72,208.7,0.66]
[1759166490856,48.17559401,208.72,208.71,0.66]
[1759166491363,34.58,208.72,208.71,0.66]
[1759166491562,34.58,208.74,208.71,0.66]
[1759166491864,34.58,208.74,208.72,0.66]
[1759166492065,34.58,208.74,208.73,0.66]
[1759166492446,34.58,208.74,208.69,4.7916427]
[1759166492646,34.58,208.74,208.7,0.66]
[1759166492849,34.58,208.74,208.71,0.66]
[1759166493041,13.59559401,208.78,208.71,0.66]
[1759166493241,13.59559401,208.83,208.71,0.66]
[1759166493474,13.59559401,208.81,208.72,5.57924368]
[1759166493649,13.59559401,208.81,208.69,16.77113381]
[1759166493650,13.59559401,208.81,208.73,0.66]
[1759166494171,19.17483769,208.81,208.73,0.66]
[1759166494348,13.59559401,208.81,208.73,0.66]
[1759166494549,34.6,208.8,208.74,4.79064865]
[1759166494858,34.6,208.8,208.75,0.66]
[1759166495058,34.6,208.8,208.76,0.66]
[1759166495245,34.6,208.8,208.77,0.66]
[1759166496466,13.59559401,208.81,208.77,0.66]
[1759166496467,13.59559401,208.81,208.77,5.44986873]
[1759166496670,34.6,208.8,208.78,0.66]
[1759166496962,34.58,208.8,208.78,0.66]
[1759166497167,34.58,208.8,208.79,0.66]
[1759166497665,13.59559401,208.85,208.77,5.44986873]
[1759166497666,5.36836139,208.84,208.77,5.44986873]
[1759166497861,13.59559401,208.82,208.77,5.44986873]
[1759166498071,13.59559401,208.82,208.77,4.78986873]
[1759166498254,13.59559401,208.82,208.78,0.66]
[1759166498449,14.17559401,208.82,208.75,5.45024187]
[1759166498642,13.59559401,208.82,208.76,0.66]
[1759166498973,6.15924368,208.86,208.76,0.66]
[1759166499271,48.17559401,208.85,208.76,0.66]
[1759166499583,13.59559401,208.85,208.76,0.66]
[1759166499865,34.58,208.84,208.76,0.66]
[1759166500454,13.59559401,208.86,208.76,0.66]
[1759166500652,34.66,208.85,208.77,16.76486084]
[1759166500967,34.66,208.85,208.78,0.66]
[1759166501667,34.66,208.85,208.79,16.76325494]
[1759166501861,34.66,208.85,208.8,0.66]
[1759166502061,34.66,208.85,208.81,0.66]
[1759166502262,34.66,208.85,208.79,4.78950141]
[1759166502465,39.44819747,208.85,208.79,4.78950141]
[1759166502649,13.59559401,208.84,208.79,4.78950141]
[1759166503176,14.17559401,208.84,208.79,4.78950141]
[1759166503761,14.17559401,208.84,208.77,0.66]
[1759166504676,18.96395749,208.84,208.77,0.66]
[1759166505175,14.17559401,208.84,208.77,0.66]
[1759166505491,0.58,208.88,208.77,0.66]
[1759166505774,34.6,208.87,208.78,16.76405785]
[1759166505971,34.6,208.87,208.79,0.66]
[1759166506169,13.59559401,208.89,208.79,0.66]
[1759166506388,13.59559401,208.9,208.79,0.66]
[1759166506583,34.62,208.89,208.79,0.66]
[1759166507758,34.62,208.89,208.79,2.71834991]
[1759166507960,34.62,208.89,208.8,17.4224521]
[1759166508175,34.62,208.89,208.81,0.66]
[1759166508380,14.17559401,208.88,208.8,16.7624521]
[1759166508852,13.59559401,208.88,208.81,0.66]
[1759166509858,13.59559401,208.88,208.82,4.78881333]
[1759166510251,13.59559401,208.88,208.82,16.76084666]
[1759166512079,13.59559401,208.86,208.8,4.78927203]
[1759166512254,34.58,208.85,208.8,4.78927203]
[1759166512459,34.58,208.85,208.81,0.68]
[1759166512760,34.56,208.87,208.82,0.68]
[1759166513768,34.56,208.87,208.83,4.78858401]
[1759166514256,0.58,208.86,208.83,4.78858401]
[1759166514858,34.56,208.87,208.83,4.78858401]
[1759166515060,34.56,208.87,207.65,64.15466235]
[1759166515061,14.17559401,208.86,208.77,4.78994032]
[1759166515276,13.59559401,208.84,208.74,0.68]
[1759166515480,34.56,208.83,208.74,0.68]
[1759166515776,4.78904267,208.81,208.74,5.47062352]
[1759166516357,5.36904267,208.81,208.74,4.79062352]
[1759166516556,0.58,208.8,208.74,4.79062352]
[1759166516783,34.56,208.79,208.74,4.79062352]
[1759166516964,35.14,208.79,208.74,4.79062352]
[1759166517174,34.56,208.79,208.74,4.79062352]
[1759166517486,34.56,208.79,208.75,0.68]
[1759166517677,34.56,208.79,208.76,0.68]
[1759166518266,34.56,208.79,208.77,4.78996024]
[1759166518483,6.84601687,208.87,208.78,0.68]
[1759166518679,48.15559401,208.86,208.78,0.68]
[1759166520066,52.94349718,208.86,208.78,4.78971453]
[1759166520261,0.58,208.85,208.78,4.78971453]
[1759166520681,0.58,208.85,208.78,17.44404157]
[1759166520883,0.58,208.85,208.78,5.46971453]
[1759166521084,0.58,208.84,208.78,4.78971453]
[1759166521399,13.59559401,208.83,208.78,4.78971453]
[1759166521562,13.59559401,208.83,208.79,0.68]
[1759166521766,13.59559401,208.88,208.79,0.68]
[1759166521966,48.15559401,208.88,208.8,4.78927203]
[1759166522169,34.56,208.88,208.81,0.68]
[1759166522697,14.17559401,208.91,208.81,0.68]
[1759166522875,48.15559401,208.9,208.81,0.68]
[1759166523208,2.63834991,208.94,208.81,0.68]
[1759166523371,48.15559401,208.93,208.81,2.73834991]
[1759166523575,48.73559401,208.93,208.82,0.68]
[1759166523974,13.59559401,208.91,208.82,4.78881333]
[1759166524169,0.58,208.9,208.82,16.76084666]
[1759166524373,0.58,208.92,208.83,0.68]
[1759166526086,5.36673983,208.92,208.84,4.78835472]
[1759166526875,5.36673983,208.92,208.84,5.46835472]
[1759166527684,5.36673983,208.92,208.84,17.43924152]
[1759166527975,14.17559401,208.91,208.84,5.46835472]
[1759166529182,131.6,208.92,208.84,16.75924152]
[1759166529376,131.6,208.92,208.85,0.68]
[1759166529377,136.38654604,208.92,208.85,0.68]
[1759166529582,136.38654604,208.92,208.86,4.78789619]
[1759166529890,131.6,208.92,208.86,4.78789619]
[1759166530394,166.16,208.92,208.87,0.68]
[1759166530572,166.16,208.92,208.88,0.68]
[1759166531484,13.59559401,208.94,208.89,0.68]
[1759166531672,132.18,209.02,208.92,2.05834991]
[1759166531673,0.58,209.02,208.92,2.05834991]
[1759166531871,0.58,209.02,208.95,2.05834991]
[1759166532093,23.74,209.03,208.96,0.68]
[1759166532473,23.74,209.03,208.96,3.88994538]
[1759166532682,13.59559401,209.02,208.96,3.88994538]
[1759166532889,0.2,209.05,208.97,0.68]
[1759166533095,0.2,209.05,208.98,3.20994538]
[1759166533392,0.2,209.05,208.99,0.68]
[1759166533588,0.2,209.05,209.0,4.78468899]
[1759166533794,0.2,209.05,209.0,5.46468899]
[1759166533972,0.2,209.05,209.01,0.71]
[1759166534173,0.2,209.05,209.0,4.78468899]
[1759166534389,0.2,209.05,209.0,16.74641147]
[1759166534697,0.2,209.05,209.01,0.71]
[1759166535494,0.2,209.05,209.02,0.71]
[1759166535676,0.2,209.05,209.04,4.78377344]
[1759166537599,0.2,209.05,209.04,0.71]
[1759166537996,0.2,209.05,209.01,0.71]
[1759166538178,0.2,209.05,208.99,43.88174784]
[1759166538179,0.2,209.05,209.02,0.71]
[1759166539304,0.58,209.04,208.99,16.74721277]
[1759166539497,0.2,209.05,208.99,17.45721277]
[1759166540413,0.58,209.04,208.99,4.78491793]
[1759166540714,13.59559401,209.02,208.96,12.6735645]
[1759166541019,13.59559401,209.02,208.97,4.78537589]
[1759166541187,13.59559401,209.02,208.97,17.40881561]
[1759166541794,13.59559401,209.02,208.97,16.74881561]
[1759166541998,13.59559401,209.02,208.97,17.40881561]
[1759166542205,13.59559401,209.03,208.97,17.40881561]
[1759166542695,39.52366201,209.05,208.97,17.40881561]
[1759166542696,0.2,209.05,208.98,3.86994538]
[1759166542906,0.2,209.05,209.01,3.20994538]
[1759166543407,0.2,209.05,209.02,0.66]
[1759166543611,0.2,209.05,209.03,0.66]
[1759166543790,0.2,209.05,209.01,0.66]
[1759166544111,0.2,209.05,209.02,0.66]
[1759166544313,0.2,209.05,209.03,0.66]
[1759166545814,0.2,209.05,208.97,43.88564044]
[1759166546005,0.2,209.05,209.01,0.66]
[1759166546191,0.2,209.05,209.02,0.66]
[1759166546694,0.2,209.05,209.03,0.66]
[1759166546913,0.2,209.05,209.04,0.66]
[1759166547490,0.2,209.05,209.04,3.86994538]
[1759166547997,0.2,209.05,209.04,8.65371882]
[1759166548502,0.2,209.05,209.04,5.44377344]
[1759166548703,0.2,209.05,209.0,3.86994538]
[1759166548913,13.79559401,209.05,209.01,4.78446007]
[1759166549113,14.37559401,209.05,209.01,4.78446007]
[1759166549417,0.2,209.05,209.01,4.78446007]
[1759166549817,0.2,209.05,209.01,5.44446007]
[1759166551695,0.2,209.05,209.0,3.20994538]
[1759166552004,0.2,209.05,208.99,4.78470058]
[1759166552424,13.59559401,209.04,208.99,4.78470058]
[1759166552905,14.17559401,209.04,208.99,4.78470058]
[1759166553596,13.59559401,209.02,208.94,3.86994538]
[1759166553797,13.59559401,209.02,208.95,0.66]
[1759166554100,13.59559401,209.02,208.96,4.7856049]
[1759166554821,131.6,209.01,208.96,4.7856049]
[1759166555027,131.6,209.01,208.97,0.66]
[1759166555199,131.6,209.01,208.96,7.99555028]
[1759166555604,131.6,209.01,208.96,8.65555028]
[1759166555801,131.6,209.01,208.96,3.20994538]
[1759166556119,131.6,209.01,208.97,0.66]
[1759166556918,131.6,209.01,208.98,8.65509228]
[1759166557105,131.6,209.01,208.99,0.66]
[1759166557500,131.6,209.01,209.0,3.86994538]
[1759166557696,131.6,209.01,209.0,0.66]
[1759166557916,131.6,209.01,208.99,3.20994538]
[1759166558121,131.6,209.01,208.98,4.7851469]
[1759166558511,131.6,209.01,208.97,7.99528841]
[1759166558926,131.6,209.01,208.98,0.66]
[1759166559510,131.6,209.01,208.97,7.99528841]
[1759166559727,131.6,209.01,208.98,0.66]
[1759166559925,131.6,209.01,208.99,3.86994538]
[1759166560144,131.6,209.01,209.0,0.66]
[1759166560432,0.2,209.05,209.0,0.66]
[1759166560723,0.2,209.05,209.02,3.20994538]
[1759166561115,0.2,209.05,209.02,3.86994538]
[1759166561518,0.2,209.05,209.02,0.66]
[1759166561731,0.2,209.05,209.02,5.4440804]
[1759166563530,0.2,209.05,209.02,4.7840804]
[1759166563828,0.2,209.05,209.02,5.4440804]
[1759166564020,0.2,209.05,209.02,4.7840804]
[1759166565423,131.8,209.05,209.02,4.7840804]
[1759166565623,131.8,209.05,209.0,4.78468899]
[1759166565807,136.58357783,209.05,209.0,4.78468899]
[1759166566126,136.58357783,209.05,209.0,5.44468899]
[1759166566824,136.58357783,209.05,208.98,16.74763705]
[1759166567032,136.58357783,209.05,208.98,17.40763705]
[1759166567525,0.2,209.05,208.99,3.86994538]
[1759166567732,0.2,209.05,209.01,3.20994538]
[1759166568109,0.2,209.05,209.02,0.66]
[1759166568310,0.2,209.05,209.01,3.20994538]
[1759166568517,0.2,209.05,209.02,0.66]
[1759166568714,0.2,209.05,208.99,3.20994538]
[1759166568923,13.79559401,209.05,209.0,4.78468899]
[1759166569154,18.57922874,209.05,208.99,5.44489041]
[1759166569314,0.58,209.04,208.99,4.78489041]
[1759166569635,18.57922874,209.05,208.99,5.44489041]
[1759166569848,13.79559401,209.05,209.0,0.66]
[1759166570047,13.79559401,209.05,208.97,7.99530815]
[1759166570346,13.59559401,209.03,208.97,4.78536277]
[1759166571006,18.37968606,209.03,208.96,5.44558792]
[1759166571216,13.59559401,209.03,208.96,5.44558792]
[1759166573025,18.37969503,209.03,208.96,5.44558792]
[1759166573221,18.95969503,209.03,208.96,5.44558792]
[1759166573424,13.59559401,209.01,208.96,4.78558792]
[1759166573625,14.17559401,209.01,208.94,0.65]
[1759166573830,35.1,209.0,208.92,4.78652115]
[1759166574018,35.1,209.0,208.93,0.65]
[1759166574423,34.52,209.0,208.93,3.85994538]
[1759166574620,34.52,209.0,208.95,3.20994538]
[1759166574821,34.52,209.0,208.96,0.65]
[1759166575009,34.52,209.0,208.97,0.65]
[1759166575938,34.52,209.0,208.96,4.7854286]
[1759166576142,34.52,209.0,208.96,5.4354286]
[1759166576519,34.52,209.0,208.95,7.99577337]
[1759166576842,39.3047987,209.0,208.95,4.78582799]
[1759166577152,39.8847987,209.0,208.95,4.78582799]
[1759166577721,34.52,209.0,208.96,0.65]
[1759166578140,0.58,209.03,208.97,0.65]
[1759166578439,34.52,209.02,208.97,0.65]
[1759166579950,34.52,209.02,208.98,4.7851469]
[1759166580249,34.52,209.02,208.99,0.65]
[1759166580250,131.6,209.02,208.99,0.65]
[1759166580420,131.6,209.02,209.01,3.20994538]
[1759166580621,0.2,209.06,209.01,3.85994538]
[1759166580943,0.2,209.06,209.0,3.20994538]
[1759166580944,0.2,209.06,209.04,3.20994538]
[1759166581247,0.2,209.06,209.04,3.85994538]
[1759166582114,0.2,209.06,209.04,8.64371882]
[1759166582742,0.2,209.06,209.04,7.99371882]
[1759166582928,0.2,209.06,209.04,4.78377344]
[1759166583325,0.2,209.06,209.04,5.43377344]
[1759166583724,0.2,209.06,209.03,4.78399486]
[1759166584130,0.2,209.06,209.02,4.78420724]
[1759166584446,0.2,209.06,209.0,3.85994538]
[1759166584447,4.9833709,209.06,209.0,5.43449605]
[1759166585350,0.58,209.04,208.97,0.65]
[1759166585653,13.79559401,209.05,208.97,0.65]
[1759166586027,145.39559401,209.05,208.97,0.65]
[1759166586228,145.39559401,209.05,208.98,4.7851469]
[1759166586444,150.17928534,209.05,208.98,5.4351469]
[1759166586752,0.58,209.04,208.98,4.7851469]
[1759166587732,0.58,209.04,208.96,0.65]
[1759166587733,13.59559401,209.03,208.97,4.78535689]
[1759166588031,48.11559401,209.03,208.97,4.78535689]
[1759166589455,52.89959831,209.03,208.97,4.78535689]
[1759166589646,48.11559401,209.03,208.97,4.78535689]
[1759166590122,48.11559401,209.03,208.96,0.65]
[1759166590123,52.89962057,209.03,208.96,5.43558843]
[1759166590528,0.58,209.02,208.96,4.78558843]
[1759166590754,0.58,209.01,208.92,12.61622895]
[1759166590948,0.58,209.0,208.92,12.61622895]
[1759166591647,5.36471641,209.0,208.93,4.78629205]
[1759166591831,48.69559401,208.99,208.9,0.65]
[1759166592027,48.69559401,208.99,208.88,4.78743776]
[1759166592338,2.05677577,208.96,208.87,4.78764814]
[1759166592544,13.59559401,208.94,208.86,4.78789488]
[1759166592747,13.59559401,208.92,208.86,4.78789488]
[1759166593052,13.59559401,208.9,208.77,23.94876174]
[1759166593231,32.69559401,208.91,208.82,0.65]
[1759166593431,0.58,208.9,208.82,0.65]
[1759166593653,0.58,208.9,208.78,6.84650658]
[1759166593654,5.36719219,208.9,208.8,0.65]
[1759166593861,7.42396796,208.9,208.77,5.43996024]
[1759166594026,0.58,208.89,208.77,5.43996024]
[1759166594233,6.84396796,208.9,208.77,5.43996024]
[1759166594234,5.57649173,208.87,208.77,14.2633213]
[1759166594574,5.57649173,208.87,208.76,5.51018537]
[1759166594575,35.1,208.86,208.76,5.51018537]
[1759166594869,0.58,208.85,208.76,5.51018537]
[1759166595038,0.58,208.84,208.71,17.55445206]
[1759166595335,13.59559401,208.82,208.72,0.72]
[1759166595549,13.59559401,208.82,208.72,5.5111077]
[1759166595550,39.88925564,208.81,208.72,5.5111077]
[1759166596059,14.17559401,208.8,208.72,14.35600426]
[1759166596259,13.59559401,208.76,208.68,0.72]
[1759166596464,34.52,208.75,208.67,4.79225571]
[1759166597041,37.53136772,208.88,208.67,4.79225571]
[1759166597042,34.52,208.8,208.7,5.57649173]
[1759166597359,34.52,208.8,208.71,0.72]
[1759166597563,34.52,208.81,208.74,4.79064865]
[1759166597733,34.52,208.81,208.75,0.72]
[1759166598166,0.58,208.85,208.75,0.72]
[1759166598459,13.59559401,208.82,208.72,0.72]
[1759166598754,5.57649173,208.79,208.72,0.72]
[1759166598956,5.57649173,208.79,208.72,17.48887696]
[1759166601349,0.58,208.78,208.72,4.7911077]
[1759166601547,131.6,208.81,208.73,0.66]
[1759166602547,5.57649173,208.86,208.74,13.59559401]
[1759166602548,34.54,208.85,208.74,13.59559401]
[1759166602751,34.54,208.85,208.75,0.66]
[1759166603263,0.58,208.84,208.76,16.76566391]
[1759166603573,34.54,208.85,208.77,0.66]
[1759166604639,39.90823955,208.85,208.76,4.79018969]
[1759166604843,5.57649173,208.83,208.74,4.79055025]
[1759166605055,10.36576376,208.8,208.7,0.66]
[1759166605272,34.54,208.79,208.7,0.66]
[1759166605465,0.58,208.78,208.7,0.66]
[1759166607457,4.78996024,208.77,208.7,0.66]
[1759166607642,6.15649173,208.76,208.68,12.6397236]
[1759166607844,131.6,208.75,208.68,12.6397236]
[1759166608460,131.6,208.75,208.69,4.79179644]
[1759166609071,131.6,208.75,208.69,16.77128755]
[1759166609666,166.16,208.75,208.69,16.77128755]
[1759166610870,166.16,208.75,208.69,4.79179644]
[1759166612183,166.14,208.75,208.7,0.66]
[1759166612380,166.14,208.75,208.71,0.66]
[1759166613079,166.14,208.75,208.69,17.43128755]
[1759166614285,131.6,208.75,208.69,17.43128755]
[1759166615868,131.6,208.75,208.7,0.66]
[1759166616572,0.58,208.81,208.71,16.76968041]
[1759166616787,0.58,208.81,208.72,0.66]
[1759166616993,35.12,208.81,208.72,0.66]
[1759166617195,34.54,208.81,208.72,0.66]
[1759166617993,0.72216157,208.8,208.71,16.76968041]
[1759166618166,0.14216157,208.78,208.71,16.76968041]
[1759166618376,0.72216157,208.78,208.71,16.76968041]
[1759166618575,0.72216157,208.78,208.71,12.63834315]
[1759166619272,5.57927114,208.8,208.72,0.66]
[1759166619473,5.36835855,208.84,208.72,0.66]
[1759166619689,34.54,208.83,208.72,0.66]
[1759166619992,0.58,208.84,208.72,0.66]
[1759166620290,34.54,208.83,208.72,0.66]
[1759166620790,34.54,208.83,208.73,16.76807357]
[1759166620986,34.54,208.83,208.74,0.66]
[1759166621195,35.12,208.84,208.74,0.66]
[1759166622672,39.9083792,208.84,208.74,0.66]
[1759166623598,39.9083792,208.84,208.75,16.76646706]
[1759166623599,0.14216157,208.83,208.75,16.76646706]
[1759166623779,0.72216157,208.83,208.75,16.76646706]
[1759166625673,0.72216157,208.83,208.75,17.42646706]
[1759166626099,0.14216157,208.83,208.76,0.66]
[1759166626986,34.54,208.84,208.76,0.66]
[1759166627284,34.54,208.9,208.77,13.59559401]
[1759166627600,0.14216157,208.89,208.78,0.66]
[1759166627890,0.58,208.92,208.79,16.76325494]
[1759166628095,34.54,208.93,208.8,0.66]
[1759166628590,34.54,208.93,208.81,13.59559401]
[1759166628898,34.54,208.93,208.82,6.23927114]
[1759166629097,13.59559401,208.97,208.85,5.57927114]
[1759166629098,0.58,208.97,208.85,5.57927114]
[1759166629398,0.58,209.01,208.88,5.57927114]
[1759166629707,0.58,209.01,208.9,13.59559401]
[1759166630002,0.14216157,209.02,208.92,16.75282404]
[1759166630180,0.78,209.05,208.93,0.66]
[1759166630576,0.78,209.05,208.94,13.59559401]
[1759166630777,0.2,209.05,208.95,0.66]
[1759166631199,0.2,209.05,208.96,13.59559401]
[1759166631371,0.2,209.05,208.97,0.65]
[1759166631574,0.2,209.05,208.98,13.59559401]
[1759166631768,0.2,209.05,208.99,0.65]
[1759166632169,0.2,209.05,209.0,16.74641147]
[1759166632380,0.2,209.05,209.01,0.65]
[1759166632580,0.2,209.05,209.02,0.65]
[1759166632772,0.2,209.05,209.03,0.65]
[1759166632971,0.2,209.05,209.04,0.65]
[1759166633601,0.2,209.06,209.04,0.65]
[1759166634398,1e-08,209.06,209.05,4.7835446]
[1759166634587,0.2,209.11,209.05,54.90572315]
[1759166634782,0.2,209.11,209.06,0.65]
[1759166635294,0.2,209.11,209.07,13.59559401]
[1759166635489,0.2,209.11,209.08,0.65]
[1759166635895,0.2,209.11,209.07,19.17486515]
[1759166636087,0.2,209.11,209.09,0.65]
[1759166636286,0.2,209.11,209.1,5.43240076]
[1759166636905,0.2,209.11,209.1,4.78240076]
[1759166638300,0.2,209.11,209.1,0.65]
[1759166638879,1e-08,209.11,209.1,0.65]
[1759166640287,1e-08,209.11,209.1,5.43240076]
[1759166640696,0.2,209.14,209.1,36.56326782]
[1759166640904,132.18,209.23,209.13,5.57927114]
[1759166641092,131.6,209.23,209.14,0.65]
[1759166641505,131.6,209.23,209.15,13.59559401]
[1759166641706,131.6,209.23,209.16,6.22927114]
[1759166641887,131.6,209.23,209.17,14.24559401]
[1759166642090,0.2,209.24,209.18,0.65]
[1759166642403,0.2,209.24,209.19,51.23120129]
[1759166642596,0.2,209.24,209.2,0.65]
[1759166642904,0.2,209.24,209.21,0.65]
[1759166643293,0.2,209.24,209.19,51.23120129]
[1759166643491,0.2,209.24,209.2,0.65]
[1759166644002,0.58,209.23,209.19,4.78034322]
[1759166644305,0.2,209.24,209.19,4.78034322]
[1759166644306,0.58,209.22,209.19,4.78034322]
[1759166644604,0.2,209.24,209.17,16.73280106]
[1759166644778,0.58,209.21,209.15,4.78104244]
[1759166645810,0.92216157,209.24,209.15,16.73418611]
[1759166646307,0.58,209.23,209.15,16.73418611]
[1759166646484,0.14216157,209.22,209.15,16.73418611]
[1759166647593,0.14216157,209.2,209.12,11.95451259]
[1759166647793,0.14216157,209.2,209.12,5.43194338]
[1759166647996,0.58,209.19,209.12,4.78194338]
[1759166648305,0.58,209.19,209.12,16.73680183]
[1759166648807,0.14216157,209.2,209.13,0.65]
[1759166649017,0.2,209.24,209.13,0.65]
[1759166649881,0.58,209.23,209.13,0.65]
[1759166650692,0.14216157,209.22,209.14,4.78148608]
[1759166650893,5.35958951,209.23,209.15,0.65]
[1759166650894,0.58,209.23,209.15,0.65]
[1759166651212,0.34216157,209.24,209.15,0.65]